{"text_format":"3","workbook":"xlsx","n_sheets":4,"sheets":["ΣΤΟΧΟΙ","ΔΙΑΙΤΑ","ΑΣΚΗΣΗ","Υπολογισμοί γραφήματος"],"not_rendered":{"charts":2,"defined_names":19},"read":"whole","date_system":"1900"}

{"sheet":"ΣΤΟΧΟΙ","index":0,"n_rows":16,"n_cols":11,"rows_kept":16,"merged":[[2,1,3,1],[7,1,8,1]]}
[null,{"$f":"TODAY()","v":"2017-05-09"},"ΣΤΟΧΟΙ",{"$nulls":6},"Άσκηση","Δίαιτα"]
[null,"ΗΜΕΡΟΜΗΝΙΑ ΕΝΑΡΞΗΣ","ΗΜΕΡΟΛΟΓΙΟ ΔΙΑΤΡΟΦΗΣ & ΑΣΚΗΣΗΣ"]
[null,{"$f":"ΗμερομηνίαΈναρξης+121","v":"2017-09-07"},"ΑΝΑΛΥΣΗ ΔΙΑΙΤΑΣ"]
[]
[null,"ΗΜΕΡΟΜΗΝΙΑ ΛΗΞΗΣ"]
[null,{"v":100,"d":"100.00"}]
[null,"ΑΡΧΙΚΟ ΒΑΡΟΣ"]
[null,{"v":80,"d":"80.00"},"ΑΝΑΛΥΣΗ ΑΣΚΗΣΗΣ"]
[]
[null,"ΤΕΛΙΚΟ ΒΑΡΟΣ"]
[null,{"$f":"ΑρχικόΒάρος-ΤελικόΒάρος","v":20}]
[null,"ΑΠΩΛΕΙΑ ΚΙΛΩΝ-ΣΤΟΧΟΣ"]
[null,{"$f":"ΗμερομηνίαΛήξης-ΗμερομηνίαΈναρξης","v":121}]
[null,"ΔΙΑΣΤΗΜΑ ΑΠΩΛΕΙΑΣ ΣΕ ΗΜΕΡΕΣ"]
[null,{"$f":"ΒάροςΣτόχος/B13","v":{"v":0.1652892561983471,"d":"0.17"}}]
[null,"ΑΠΩΛΕΙΑ ΑΝΑ ΗΜΕΡΑ"]

{"sheet":"ΔΙΑΙΤΑ","index":1,"n_rows":19,"n_cols":9,"rows_kept":19}
[null,"ΔΙΑΙΤΑ",{"$nulls":4},"Στόχοι","Άσκηση"]
[null,{"$f":"Υπότιτλος","v":"ΗΜΕΡΟΛΟΓΙΟ ΔΙΑΤΡΟΦΗΣ & ΑΣΚΗΣΗΣ"}]
[null,"ΗΜΕΡΟΜΗΝΙΑ","ΩΡΑ","ΠΕΡΙΓΡΑΦΗ","ΘΕΡΜΙΔΕΣ","ΥΔΑΤΑΝΘΡΑΚΕΣ","ΠΡΩΤΕΪΝΕΣ","ΛΙΠΑΡΑ","ΣΗΜΕΙΩΣΕΙΣ"]
[null,{"$f":"ΗμερομηνίαΈναρξης","v":"2017-05-09"},"07:00:00","Καφές",1,0,0,0,"Πρωινός καφές"]
[null,{"$f":"ΗμερομηνίαΈναρξης","v":"2017-05-09"},"08:00:00","Κουλούρι",10,10,2,10,"Ελαφρύ πρωινό"]
[null,{"$f":"ΗμερομηνίαΈναρξης","v":"2017-05-09"},"12:00:00","Γεύμα",283,46,18,{"v":3.5,"d":"4"},"Σάντουιτς γαλοπούλας"]
[null,{"$f":"ΗμερομηνίαΈναρξης","v":"2017-05-09"},"19:00:00","Δείπνο",500,42,35,25,"Ψητό κατσαρόλας"]
[null,{"$f":"ΗμερομηνίαΈναρξης+1","v":"2017-05-10"},"07:00:00","Καφές",1,0,0,0,"Πρωινός καφές"]
[null,{"$f":"ΗμερομηνίαΈναρξης+1","v":"2017-05-10"},"08:00:00","Τοστ",10,10,2,10,"Ελαφρύ πρωινό"]
[null,{"$f":"ΗμερομηνίαΈναρξης+1","v":"2017-05-10"},"12:00:00","Γεύμα",189,26,3,8,"Σάντουιτς"]
[null,{"$f":"ΗμερομηνίαΈναρξης+1","v":"2017-05-10"},"19:00:00","Δείπνο",477,62,{"v":13.5,"d":"14"},21,"Δείπνο"]
[null,{"$f":"ΗμερομηνίαΈναρξης+2","v":"2017-05-11"},"07:00:00","Καφές",1,0,0,0,"Πρωινός καφές"]
[null,{"$f":"ΗμερομηνίαΈναρξης+2","v":"2017-05-11"},"08:00:00","Κουλούρι",245,48,10,{"v":1.5,"d":"2"},"Ελαφρύ πρωινό"]
[null,{"$f":"ΗμερομηνίαΈναρξης+2","v":"2017-05-11"},"12:00:00","Γεύμα",247,11,43,5,"Σαλάτα"]
[null,{"$f":"ΗμερομηνίαΈναρξης+2","v":"2017-05-11"},"19:00:00","Δείπνο",456,64,32,22,"Δείπνο"]
[null,{"$f":"ΗμερομηνίαΈναρξης+3","v":"2017-05-12"},"07:00:00","Τοστ",10,10,2,10,"Ελαφρύ πρωινό"]
[null,{"$f":"ΗμερομηνίαΈναρξης+3","v":"2017-05-12"},"10:00:00","Καφές",135,{"v":12.36,"d":"12"},{"v":8.81,"d":"9"},{"v":5.51,"d":"6"},"Καφές Latte"]
[null,{"$f":"ΗμερομηνίαΈναρξης+3","v":"2017-05-12"},"12:15:00","Γεύμα",184,7,{"v":5.43,"d":"5"},15,"Σαλάτα"]
[null,{"$f":"ΗμερομηνίαΈναρξης+5","v":"2017-05-14"},"19:00:00","Δείπνο",477,62,{"v":13.5,"d":"14"},21,"Δείπνο"]

{"sheet":"ΑΣΚΗΣΗ","index":2,"n_rows":20,"n_cols":7,"rows_kept":20}
[null,"ΑΣΚΗΣΗ",{"$nulls":3},"Δίαιτα","Στόχοι"]
[null,{"$f":"Υπότιτλος","v":"ΗΜΕΡΟΛΟΓΙΟ ΔΙΑΤΡΟΦΗΣ & ΑΣΚΗΣΗΣ"}]
[null,"ΗΜΕΡΟΜΗΝΙΑ","ΔΙΑΡΚΕΙΑ (ΛΕΠΤΑ)","ΘΕΡΜΙΔΕΣ ΠΟΥ ΚΑΤΑΝΑΛΩΘΗΚΑΝ","ΣΗΜΕΙΩΣΕΙΣ"]
[null,{"$f":"ΗμερομηνίαΈναρξης+4","v":"2017-05-13"},30,120,"Άσκηση με διάδρομο"]
[null,{"$f":"B4+1","v":"2017-05-14"},60,180,"Αεροβική χαμηλής έντασης"]
[null,{"$f":"B5+1","v":"2017-05-15"},60,350,"Άσκηση υψηλής έντασης"]
[null,"2017-05-16",30,150,"Άσκηση με διάδρομο"]
[null,"2017-05-17",25,125,"Τρέξιμο"]
[null,"2017-05-18",20,285,"Άσκηση με διάδρομο"]
[null,"2017-05-19",40,205,"Τρέξιμο"]
[null,"2017-05-20",30,335,"Τρέξιμο"]
[null,"2017-05-21",40,175,"Τρέξιμο"]
[null,"2017-05-22",45,325,"Άσκηση με διάδρομο"]
[null,"2017-05-23",40,270,"Τρέξιμο"]
[null,"2017-05-24",20,295,"Άσκηση με διάδρομο"]
[null,"2017-05-25",45,350,"Τρέξιμο"]
[null,"2017-05-26",35,320,"Τρέξιμο"]
[null,"2017-05-27",40,290,"Τρέξιμο"]
[null,{"$f":"B18+1","v":"2017-05-28"},25,265,"Άσκηση με διάδρομο"]
[null,"2017-05-29",20,195,"Τρέξιμο"]

{"sheet":"Υπολογισμοί γραφήματος","index":3,"n_rows":36,"n_cols":10,"rows_kept":36,"hidden":true,"merged":[[1,1,1,9],[19,1,19,9]]}
[]
[null,"ΔΕΔΟΜΕΝΑ ΓΡΑΦΗΜΑΤΟΣ ΑΝΑΛΥΣΗΣ ΔΙΑΙΤΑΣ"]
[]
[null,"Γραμμή έναρξης",{"$f":"ROW(Δίαιτα[[#Headers],[ΗΜΕΡΟΜΗΝΙΑ]])+1","v":4},"ΗΜΕΡΟΜΗΝΙΑ","ΗΜΕΡΑ","ΛΙΠΑΡΑ","ΠΡΩΤΕΪΝΕΣ","ΥΔΑΤΑΝΘΡΑΚΕΣ","ΘΕΡΜΙΔΕΣ","Αριθμ."]
[null,"Τελευταία καταχώρηση δίαιτας",{"$f":"MATCH(9.99E+307,Δίαιτα[ΗΜΕΡΟΜΗΝΙΑ])+ΈναρξηΓραμμήςΔίαιτας-1","v":19},{"$f":"IFERROR(IF(INDEX(Δίαιτα[],ΤέλοςΔιάρκειαςΔίαιτας-ΈναρξηΓραμμήςΔίαιτας-J5,1)<>\"\",INDEX(Δίαιτα[],ΤέλοςΔιάρκειαςΔίαιτας-ΈναρξηΓραμμήςΔίαιτας-J5,1),\"\"),\"\")","v":"2017-05-09"},{"$f":"UPPER(TEXT(D5,\"ηηη\"))","v":"ΤΡΙ"},{"$f":"IFERROR((IF(INDEX(Δίαιτα[],ΤέλοςΔιάρκειαςΔίαιτας-ΈναρξηΓραμμήςΔίαιτας-J5,1)<>\"\",INDEX(Δίαιτα[],ΤέλοςΔιάρκειαςΔίαιτας-ΈναρξηΓραμμήςΔίαιτας-J5,7),NA())),NA())","v":3.5},{"$f":"IFERROR((IF(INDEX(Δίαιτα[],ΤέλοςΔιάρκειαςΔίαιτας-ΈναρξηΓραμμήςΔίαιτας-J5,1)<>\"\",INDEX(Δίαιτα[],ΤέλοςΔιάρκειαςΔίαιτας-ΈναρξηΓραμμήςΔίαιτας-J5,6),NA())),NA())","v":18},{"$f":"IFERROR((IF(INDEX(Δίαιτα[],ΤέλοςΔιάρκειαςΔίαιτας-ΈναρξηΓραμμήςΔίαιτας-J5,1)<>\"\",INDEX(Δίαιτα[],ΤέλοςΔιάρκειαςΔίαιτας-ΈναρξηΓραμμήςΔίαιτας-J5,5),NA())),NA())","v":46},{"$f":"IFERROR((IF(INDEX(Δίαιτα[],ΤέλοςΔιάρκειαςΔίαιτας-ΈναρξηΓραμμήςΔίαιτας-J5,1)<>\"\",INDEX(Δίαιτα[],ΤέλοςΔιάρκειαςΔίαιτας-ΈναρξηΓραμμήςΔίαιτας-J5,4),NA())),NA())","v":283},12]
[{"$nulls":3},{"$f":"IFERROR(IF(INDEX(Δίαιτα[],ΤέλοςΔιάρκειαςΔίαιτας-ΈναρξηΓραμμήςΔίαιτας-J6,1)<>\"\",INDEX(Δίαιτα[],ΤέλοςΔιάρκειαςΔίαιτας-ΈναρξηΓραμμήςΔίαιτας-J6,1),\"\"),\"\")","v":"2017-05-09"},"ΤΡΙ",{"$f":"IFERROR((IF(INDEX(Δίαιτα[],ΤέλοςΔιάρκειαςΔίαιτας-ΈναρξηΓραμμήςΔίαιτας-J6,1)<>\"\",INDEX(Δίαιτα[],ΤέλοςΔιάρκειαςΔίαιτας-ΈναρξηΓραμμήςΔίαιτας-J6,7),NA())),NA())","v":25},{"$f":"IFERROR((IF(INDEX(Δίαιτα[],ΤέλοςΔιάρκειαςΔίαιτας-ΈναρξηΓραμμήςΔίαιτας-J6,1)<>\"\",INDEX(Δίαιτα[],ΤέλοςΔιάρκειαςΔίαιτας-ΈναρξηΓραμμήςΔίαιτας-J6,6),NA())),NA())","v":35},{"$f":"IFERROR((IF(INDEX(Δίαιτα[],ΤέλοςΔιάρκειαςΔίαιτας-ΈναρξηΓραμμήςΔίαιτας-J6,1)<>\"\",INDEX(Δίαιτα[],ΤέλοςΔιάρκειαςΔίαιτας-ΈναρξηΓραμμήςΔίαιτας-J6,5),NA())),NA())","v":42},{"$f":"IFERROR((IF(INDEX(Δίαιτα[],ΤέλοςΔιάρκειαςΔίαιτας-ΈναρξηΓραμμήςΔίαιτας-J6,1)<>\"\",INDEX(Δίαιτα[],ΤέλοςΔιάρκειαςΔίαιτας-ΈναρξηΓραμμήςΔίαιτας-J6,4),NA())),NA())","v":500},11]
[{"$nulls":3},{"$f":"IFERROR(IF(INDEX(Δίαιτα[],ΤέλοςΔιάρκειαςΔίαιτας-ΈναρξηΓραμμήςΔίαιτας-J7,1)<>\"\",INDEX(Δίαιτα[],ΤέλοςΔιάρκειαςΔίαιτας-ΈναρξηΓραμμήςΔίαιτας-J7,1),\"\"),\"\")","v":"2017-05-10"},"ΤΕΤ",{"$f":"IFERROR((IF(INDEX(Δίαιτα[],ΤέλοςΔιάρκειαςΔίαιτας-ΈναρξηΓραμμήςΔίαιτας-J7,1)<>\"\",INDEX(Δίαιτα[],ΤέλοςΔιάρκειαςΔίαιτας-ΈναρξηΓραμμήςΔίαιτας-J7,7),NA())),NA())","v":0},{"$f":"IFERROR((IF(INDEX(Δίαιτα[],ΤέλοςΔιάρκειαςΔίαιτας-ΈναρξηΓραμμήςΔίαιτας-J7,1)<>\"\",INDEX(Δίαιτα[],ΤέλοςΔιάρκειαςΔίαιτας-ΈναρξηΓραμμήςΔίαιτας-J7,6),NA())),NA())","v":0},{"$f":"IFERROR((IF(INDEX(Δίαιτα[],ΤέλοςΔιάρκειαςΔίαιτας-ΈναρξηΓραμμήςΔίαιτας-J7,1)<>\"\",INDEX(Δίαιτα[],ΤέλοςΔιάρκειαςΔίαιτας-ΈναρξηΓραμμήςΔίαιτας-J7,5),NA())),NA())","v":0},{"$f":"IFERROR((IF(INDEX(Δίαιτα[],ΤέλοςΔιάρκειαςΔίαιτας-ΈναρξηΓραμμήςΔίαιτας-J7,1)<>\"\",INDEX(Δίαιτα[],ΤέλοςΔιάρκειαςΔίαιτας-ΈναρξηΓραμμήςΔίαιτας-J7,4),NA())),NA())","v":1},10]
[{"$nulls":3},{"$f":"IFERROR(IF(INDEX(Δίαιτα[],ΤέλοςΔιάρκειαςΔίαιτας-ΈναρξηΓραμμήςΔίαιτας-J8,1)<>\"\",INDEX(Δίαιτα[],ΤέλοςΔιάρκειαςΔίαιτας-ΈναρξηΓραμμήςΔίαιτας-J8,1),\"\"),\"\")","v":"2017-05-10"},"ΤΕΤ",{"$f":"IFERROR((IF(INDEX(Δίαιτα[],ΤέλοςΔιάρκειαςΔίαιτας-ΈναρξηΓραμμήςΔίαιτας-J8,1)<>\"\",INDEX(Δίαιτα[],ΤέλοςΔιάρκειαςΔίαιτας-ΈναρξηΓραμμήςΔίαιτας-J8,7),NA())),NA())","v":10},{"$f":"IFERROR((IF(INDEX(Δίαιτα[],ΤέλοςΔιάρκειαςΔίαιτας-ΈναρξηΓραμμήςΔίαιτας-J8,1)<>\"\",INDEX(Δίαιτα[],ΤέλοςΔιάρκειαςΔίαιτας-ΈναρξηΓραμμήςΔίαιτας-J8,6),NA())),NA())","v":2},{"$f":"IFERROR((IF(INDEX(Δίαιτα[],ΤέλοςΔιάρκειαςΔίαιτας-ΈναρξηΓραμμήςΔίαιτας-J8,1)<>\"\",INDEX(Δίαιτα[],ΤέλοςΔιάρκειαςΔίαιτας-ΈναρξηΓραμμήςΔίαιτας-J8,5),NA())),NA())","v":10},{"$f":"IFERROR((IF(INDEX(Δίαιτα[],ΤέλοςΔιάρκειαςΔίαιτας-ΈναρξηΓραμμήςΔίαιτας-J8,1)<>\"\",INDEX(Δίαιτα[],ΤέλοςΔιάρκειαςΔίαιτας-ΈναρξηΓραμμήςΔίαιτας-J8,4),NA())),NA())","v":10},9]
[{"$nulls":3},{"$f":"IFERROR(IF(INDEX(Δίαιτα[],ΤέλοςΔιάρκειαςΔίαιτας-ΈναρξηΓραμμήςΔίαιτας-J9,1)<>\"\",INDEX(Δίαιτα[],ΤέλοςΔιάρκειαςΔίαιτας-ΈναρξηΓραμμήςΔίαιτας-J9,1),\"\"),\"\")","v":"2017-05-10"},"ΤΕΤ",{"$f":"IFERROR((IF(INDEX(Δίαιτα[],ΤέλοςΔιάρκειαςΔίαιτας-ΈναρξηΓραμμήςΔίαιτας-J9,1)<>\"\",INDEX(Δίαιτα[],ΤέλοςΔιάρκειαςΔίαιτας-ΈναρξηΓραμμήςΔίαιτας-J9,7),NA())),NA())","v":8},{"$f":"IFERROR((IF(INDEX(Δίαιτα[],ΤέλοςΔιάρκειαςΔίαιτας-ΈναρξηΓραμμήςΔίαιτας-J9,1)<>\"\",INDEX(Δίαιτα[],ΤέλοςΔιάρκειαςΔίαιτας-ΈναρξηΓραμμήςΔίαιτας-J9,6),NA())),NA())","v":3},{"$f":"IFERROR((IF(INDEX(Δίαιτα[],ΤέλοςΔιάρκειαςΔίαιτας-ΈναρξηΓραμμήςΔίαιτας-J9,1)<>\"\",INDEX(Δίαιτα[],ΤέλοςΔιάρκειαςΔίαιτας-ΈναρξηΓραμμήςΔίαιτας-J9,5),NA())),NA())","v":26},{"$f":"IFERROR((IF(INDEX(Δίαιτα[],ΤέλοςΔιάρκειαςΔίαιτας-ΈναρξηΓραμμήςΔίαιτας-J9,1)<>\"\",INDEX(Δίαιτα[],ΤέλοςΔιάρκειαςΔίαιτας-ΈναρξηΓραμμήςΔίαιτας-J9,4),NA())),NA())","v":189},8]
[{"$nulls":3},{"$f":"IFERROR(IF(INDEX(Δίαιτα[],ΤέλοςΔιάρκειαςΔίαιτας-ΈναρξηΓραμμήςΔίαιτας-J10,1)<>\"\",INDEX(Δίαιτα[],ΤέλοςΔιάρκειαςΔίαιτας-ΈναρξηΓραμμήςΔίαιτας-J10,1),\"\"),\"\")","v":"2017-05-10"},"ΤΕΤ",{"$f":"IFERROR((IF(INDEX(Δίαιτα[],ΤέλοςΔιάρκειαςΔίαιτας-ΈναρξηΓραμμήςΔίαιτας-J10,1)<>\"\",INDEX(Δίαιτα[],ΤέλοςΔιάρκειαςΔίαιτας-ΈναρξηΓραμμήςΔίαιτας-J10,7),NA())),NA())","v":21},{"$f":"IFERROR((IF(INDEX(Δίαιτα[],ΤέλοςΔιάρκειαςΔίαιτας-ΈναρξηΓραμμήςΔίαιτας-J10,1)<>\"\",INDEX(Δίαιτα[],ΤέλοςΔιάρκειαςΔίαιτας-ΈναρξηΓραμμήςΔίαιτας-J10,6),NA())),NA())","v":13.5},{"$f":"IFERROR((IF(INDEX(Δίαιτα[],ΤέλοςΔιάρκειαςΔίαιτας-ΈναρξηΓραμμήςΔίαιτας-J10,1)<>\"\",INDEX(Δίαιτα[],ΤέλοςΔιάρκειαςΔίαιτας-ΈναρξηΓραμμήςΔίαιτας-J10,5),NA())),NA())","v":62},{"$f":"IFERROR((IF(INDEX(Δίαιτα[],ΤέλοςΔιάρκειαςΔίαιτας-ΈναρξηΓραμμήςΔίαιτας-J10,1)<>\"\",INDEX(Δίαιτα[],ΤέλοςΔιάρκειαςΔίαιτας-ΈναρξηΓραμμήςΔίαιτας-J10,4),NA())),NA())","v":477},7]
[{"$nulls":3},{"$f":"IFERROR(IF(INDEX(Δίαιτα[],ΤέλοςΔιάρκειαςΔίαιτας-ΈναρξηΓραμμήςΔίαιτας-J11,1)<>\"\",INDEX(Δίαιτα[],ΤέλοςΔιάρκειαςΔίαιτας-ΈναρξηΓραμμήςΔίαιτας-J11,1),\"\"),\"\")","v":"2017-05-11"},"ΠΕΜ",{"$f":"IFERROR((IF(INDEX(Δίαιτα[],ΤέλοςΔιάρκειαςΔίαιτας-ΈναρξηΓραμμήςΔίαιτας-J11,1)<>\"\",INDEX(Δίαιτα[],ΤέλοςΔιάρκειαςΔίαιτας-ΈναρξηΓραμμήςΔίαιτας-J11,7),NA())),NA())","v":0},{"$f":"IFERROR((IF(INDEX(Δίαιτα[],ΤέλοςΔιάρκειαςΔίαιτας-ΈναρξηΓραμμήςΔίαιτας-J11,1)<>\"\",INDEX(Δίαιτα[],ΤέλοςΔιάρκειαςΔίαιτας-ΈναρξηΓραμμήςΔίαιτας-J11,6),NA())),NA())","v":0},{"$f":"IFERROR((IF(INDEX(Δίαιτα[],ΤέλοςΔιάρκειαςΔίαιτας-ΈναρξηΓραμμήςΔίαιτας-J11,1)<>\"\",INDEX(Δίαιτα[],ΤέλοςΔιάρκειαςΔίαιτας-ΈναρξηΓραμμήςΔίαιτας-J11,5),NA())),NA())","v":0},{"$f":"IFERROR((IF(INDEX(Δίαιτα[],ΤέλοςΔιάρκειαςΔίαιτας-ΈναρξηΓραμμήςΔίαιτας-J11,1)<>\"\",INDEX(Δίαιτα[],ΤέλοςΔιάρκειαςΔίαιτας-ΈναρξηΓραμμήςΔίαιτας-J11,4),NA())),NA())","v":1},6]
[{"$nulls":3},{"$f":"IFERROR(IF(INDEX(Δίαιτα[],ΤέλοςΔιάρκειαςΔίαιτας-ΈναρξηΓραμμήςΔίαιτας-J12,1)<>\"\",INDEX(Δίαιτα[],ΤέλοςΔιάρκειαςΔίαιτας-ΈναρξηΓραμμήςΔίαιτας-J12,1),\"\"),\"\")","v":"2017-05-11"},"ΠΕΜ",{"$f":"IFERROR((IF(INDEX(Δίαιτα[],ΤέλοςΔιάρκειαςΔίαιτας-ΈναρξηΓραμμήςΔίαιτας-J12,1)<>\"\",INDEX(Δίαιτα[],ΤέλοςΔιάρκειαςΔίαιτας-ΈναρξηΓραμμήςΔίαιτας-J12,7),NA())),NA())","v":1.5},{"$f":"IFERROR((IF(INDEX(Δίαιτα[],ΤέλοςΔιάρκειαςΔίαιτας-ΈναρξηΓραμμήςΔίαιτας-J12,1)<>\"\",INDEX(Δίαιτα[],ΤέλοςΔιάρκειαςΔίαιτας-ΈναρξηΓραμμήςΔίαιτας-J12,6),NA())),NA())","v":10},{"$f":"IFERROR((IF(INDEX(Δίαιτα[],ΤέλοςΔιάρκειαςΔίαιτας-ΈναρξηΓραμμήςΔίαιτας-J12,1)<>\"\",INDEX(Δίαιτα[],ΤέλοςΔιάρκειαςΔίαιτας-ΈναρξηΓραμμήςΔίαιτας-J12,5),NA())),NA())","v":48},{"$f":"IFERROR((IF(INDEX(Δίαιτα[],ΤέλοςΔιάρκειαςΔίαιτας-ΈναρξηΓραμμήςΔίαιτας-J12,1)<>\"\",INDEX(Δίαιτα[],ΤέλοςΔιάρκειαςΔίαιτας-ΈναρξηΓραμμήςΔίαιτας-J12,4),NA())),NA())","v":245},5]
[{"$nulls":3},{"$f":"IFERROR(IF(INDEX(Δίαιτα[],ΤέλοςΔιάρκειαςΔίαιτας-ΈναρξηΓραμμήςΔίαιτας-J13,1)<>\"\",INDEX(Δίαιτα[],ΤέλοςΔιάρκειαςΔίαιτας-ΈναρξηΓραμμήςΔίαιτας-J13,1),\"\"),\"\")","v":"2017-05-11"},"ΠΕΜ",{"$f":"IFERROR((IF(INDEX(Δίαιτα[],ΤέλοςΔιάρκειαςΔίαιτας-ΈναρξηΓραμμήςΔίαιτας-J13,1)<>\"\",INDEX(Δίαιτα[],ΤέλοςΔιάρκειαςΔίαιτας-ΈναρξηΓραμμήςΔίαιτας-J13,7),NA())),NA())","v":5},{"$f":"IFERROR((IF(INDEX(Δίαιτα[],ΤέλοςΔιάρκειαςΔίαιτας-ΈναρξηΓραμμήςΔίαιτας-J13,1)<>\"\",INDEX(Δίαιτα[],ΤέλοςΔιάρκειαςΔίαιτας-ΈναρξηΓραμμήςΔίαιτας-J13,6),NA())),NA())","v":43},{"$f":"IFERROR((IF(INDEX(Δίαιτα[],ΤέλοςΔιάρκειαςΔίαιτας-ΈναρξηΓραμμήςΔίαιτας-J13,1)<>\"\",INDEX(Δίαιτα[],ΤέλοςΔιάρκειαςΔίαιτας-ΈναρξηΓραμμήςΔίαιτας-J13,5),NA())),NA())","v":11},{"$f":"IFERROR((IF(INDEX(Δίαιτα[],ΤέλοςΔιάρκειαςΔίαιτας-ΈναρξηΓραμμήςΔίαιτας-J13,1)<>\"\",INDEX(Δίαιτα[],ΤέλοςΔιάρκειαςΔίαιτας-ΈναρξηΓραμμήςΔίαιτας-J13,4),NA())),NA())","v":247},4]
[{"$nulls":3},{"$f":"IFERROR(IF(INDEX(Δίαιτα[],ΤέλοςΔιάρκειαςΔίαιτας-ΈναρξηΓραμμήςΔίαιτας-J14,1)<>\"\",INDEX(Δίαιτα[],ΤέλοςΔιάρκειαςΔίαιτας-ΈναρξηΓραμμήςΔίαιτας-J14,1),\"\"),\"\")","v":"2017-05-11"},"ΠΕΜ",{"$f":"IFERROR((IF(INDEX(Δίαιτα[],ΤέλοςΔιάρκειαςΔίαιτας-ΈναρξηΓραμμήςΔίαιτας-J14,1)<>\"\",INDEX(Δίαιτα[],ΤέλοςΔιάρκειαςΔίαιτας-ΈναρξηΓραμμήςΔίαιτας-J14,7),NA())),NA())","v":22},{"$f":"IFERROR((IF(INDEX(Δίαιτα[],ΤέλοςΔιάρκειαςΔίαιτας-ΈναρξηΓραμμήςΔίαιτας-J14,1)<>\"\",INDEX(Δίαιτα[],ΤέλοςΔιάρκειαςΔίαιτας-ΈναρξηΓραμμήςΔίαιτας-J14,6),NA())),NA())","v":32},{"$f":"IFERROR((IF(INDEX(Δίαιτα[],ΤέλοςΔιάρκειαςΔίαιτας-ΈναρξηΓραμμήςΔίαιτας-J14,1)<>\"\",INDEX(Δίαιτα[],ΤέλοςΔιάρκειαςΔίαιτας-ΈναρξηΓραμμήςΔίαιτας-J14,5),NA())),NA())","v":64},{"$f":"IFERROR((IF(INDEX(Δίαιτα[],ΤέλοςΔιάρκειαςΔίαιτας-ΈναρξηΓραμμήςΔίαιτας-J14,1)<>\"\",INDEX(Δίαιτα[],ΤέλοςΔιάρκειαςΔίαιτας-ΈναρξηΓραμμήςΔίαιτας-J14,4),NA())),NA())","v":456},3]
[{"$nulls":3},{"$f":"IFERROR(IF(INDEX(Δίαιτα[],ΤέλοςΔιάρκειαςΔίαιτας-ΈναρξηΓραμμήςΔίαιτας-J15,1)<>\"\",INDEX(Δίαιτα[],ΤέλοςΔιάρκειαςΔίαιτας-ΈναρξηΓραμμήςΔίαιτας-J15,1),\"\"),\"\")","v":"2017-05-12"},"ΠΑΡ",{"$f":"IFERROR((IF(INDEX(Δίαιτα[],ΤέλοςΔιάρκειαςΔίαιτας-ΈναρξηΓραμμήςΔίαιτας-J15,1)<>\"\",INDEX(Δίαιτα[],ΤέλοςΔιάρκειαςΔίαιτας-ΈναρξηΓραμμήςΔίαιτας-J15,7),NA())),NA())","v":10},{"$f":"IFERROR((IF(INDEX(Δίαιτα[],ΤέλοςΔιάρκειαςΔίαιτας-ΈναρξηΓραμμήςΔίαιτας-J15,1)<>\"\",INDEX(Δίαιτα[],ΤέλοςΔιάρκειαςΔίαιτας-ΈναρξηΓραμμήςΔίαιτας-J15,6),NA())),NA())","v":2},{"$f":"IFERROR((IF(INDEX(Δίαιτα[],ΤέλοςΔιάρκειαςΔίαιτας-ΈναρξηΓραμμήςΔίαιτας-J15,1)<>\"\",INDEX(Δίαιτα[],ΤέλοςΔιάρκειαςΔίαιτας-ΈναρξηΓραμμήςΔίαιτας-J15,5),NA())),NA())","v":10},{"$f":"IFERROR((IF(INDEX(Δίαιτα[],ΤέλοςΔιάρκειαςΔίαιτας-ΈναρξηΓραμμήςΔίαιτας-J15,1)<>\"\",INDEX(Δίαιτα[],ΤέλοςΔιάρκειαςΔίαιτας-ΈναρξηΓραμμήςΔίαιτας-J15,4),NA())),NA())","v":10},2]
[{"$nulls":3},{"$f":"IFERROR(IF(INDEX(Δίαιτα[],ΤέλοςΔιάρκειαςΔίαιτας-ΈναρξηΓραμμήςΔίαιτας-J16,1)<>\"\",INDEX(Δίαιτα[],ΤέλοςΔιάρκειαςΔίαιτας-ΈναρξηΓραμμήςΔίαιτας-J16,1),\"\"),\"\")","v":"2017-05-12"},"ΠΑΡ",{"$f":"IFERROR((IF(INDEX(Δίαιτα[],ΤέλοςΔιάρκειαςΔίαιτας-ΈναρξηΓραμμήςΔίαιτας-J16,1)<>\"\",INDEX(Δίαιτα[],ΤέλοςΔιάρκειαςΔίαιτας-ΈναρξηΓραμμήςΔίαιτας-J16,7),NA())),NA())","v":5.51},{"$f":"IFERROR((IF(INDEX(Δίαιτα[],ΤέλοςΔιάρκειαςΔίαιτας-ΈναρξηΓραμμήςΔίαιτας-J16,1)<>\"\",INDEX(Δίαιτα[],ΤέλοςΔιάρκειαςΔίαιτας-ΈναρξηΓραμμήςΔίαιτας-J16,6),NA())),NA())","v":8.81},{"$f":"IFERROR((IF(INDEX(Δίαιτα[],ΤέλοςΔιάρκειαςΔίαιτας-ΈναρξηΓραμμήςΔίαιτας-J16,1)<>\"\",INDEX(Δίαιτα[],ΤέλοςΔιάρκειαςΔίαιτας-ΈναρξηΓραμμήςΔίαιτας-J16,5),NA())),NA())","v":12.36},{"$f":"IFERROR((IF(INDEX(Δίαιτα[],ΤέλοςΔιάρκειαςΔίαιτας-ΈναρξηΓραμμήςΔίαιτας-J16,1)<>\"\",INDEX(Δίαιτα[],ΤέλοςΔιάρκειαςΔίαιτας-ΈναρξηΓραμμήςΔίαιτας-J16,4),NA())),NA())","v":135},1]
[{"$nulls":3},{"$f":"IFERROR(IF(INDEX(Δίαιτα[],ΤέλοςΔιάρκειαςΔίαιτας-ΈναρξηΓραμμήςΔίαιτας-J17,1)<>\"\",INDEX(Δίαιτα[],ΤέλοςΔιάρκειαςΔίαιτας-ΈναρξηΓραμμήςΔίαιτας-J17,1),\"\"),\"\")","v":"2017-05-12"},"ΠΑΡ",{"$f":"IFERROR((IF(INDEX(Δίαιτα[],ΤέλοςΔιάρκειαςΔίαιτας-ΈναρξηΓραμμήςΔίαιτας-J17,1)<>\"\",INDEX(Δίαιτα[],ΤέλοςΔιάρκειαςΔίαιτας-ΈναρξηΓραμμήςΔίαιτας-J17,7),NA())),NA())","v":15},{"$f":"IFERROR((IF(INDEX(Δίαιτα[],ΤέλοςΔιάρκειαςΔίαιτας-ΈναρξηΓραμμήςΔίαιτας-J17,1)<>\"\",INDEX(Δίαιτα[],ΤέλοςΔιάρκειαςΔίαιτας-ΈναρξηΓραμμήςΔίαιτας-J17,6),NA())),NA())","v":5.43},{"$f":"IFERROR((IF(INDEX(Δίαιτα[],ΤέλοςΔιάρκειαςΔίαιτας-ΈναρξηΓραμμήςΔίαιτας-J17,1)<>\"\",INDEX(Δίαιτα[],ΤέλοςΔιάρκειαςΔίαιτας-ΈναρξηΓραμμήςΔίαιτας-J17,5),NA())),NA())","v":7},{"$f":"IFERROR((IF(INDEX(Δίαιτα[],ΤέλοςΔιάρκειαςΔίαιτας-ΈναρξηΓραμμήςΔίαιτας-J17,1)<>\"\",INDEX(Δίαιτα[],ΤέλοςΔιάρκειαςΔίαιτας-ΈναρξηΓραμμήςΔίαιτας-J17,4),NA())),NA())","v":184},0]
[{"$nulls":3},{"$f":"IFERROR(IF(INDEX(Δίαιτα[],ΤέλοςΔιάρκειαςΔίαιτας-ΈναρξηΓραμμήςΔίαιτας-J18,1)<>\"\",INDEX(Δίαιτα[],ΤέλοςΔιάρκειαςΔίαιτας-ΈναρξηΓραμμήςΔίαιτας-J18,1)),\"\")","v":"2017-05-14"},"ΚΥΡ",{"$f":"IFERROR((IF(INDEX(Δίαιτα[],ΤέλοςΔιάρκειαςΔίαιτας-ΈναρξηΓραμμήςΔίαιτας-J18,1)<>\"\",INDEX(Δίαιτα[],ΤέλοςΔιάρκειαςΔίαιτας-ΈναρξηΓραμμήςΔίαιτας-J18,7),NA())),NA())","v":21},{"$f":"IFERROR((IF(INDEX(Δίαιτα[],ΤέλοςΔιάρκειαςΔίαιτας-ΈναρξηΓραμμήςΔίαιτας-J18,1)<>\"\",INDEX(Δίαιτα[],ΤέλοςΔιάρκειαςΔίαιτας-ΈναρξηΓραμμήςΔίαιτας-J18,6),NA())),NA())","v":13.5},{"$f":"IFERROR((IF(INDEX(Δίαιτα[],ΤέλοςΔιάρκειαςΔίαιτας-ΈναρξηΓραμμήςΔίαιτας-J18,1)<>\"\",INDEX(Δίαιτα[],ΤέλοςΔιάρκειαςΔίαιτας-ΈναρξηΓραμμήςΔίαιτας-J18,5),NA())),NA())","v":62},{"$f":"IFERROR((IF(INDEX(Δίαιτα[],ΤέλοςΔιάρκειαςΔίαιτας-ΈναρξηΓραμμήςΔίαιτας-J18,1)<>\"\",INDEX(Δίαιτα[],ΤέλοςΔιάρκειαςΔίαιτας-ΈναρξηΓραμμήςΔίαιτας-J18,4),NA())),NA())","v":477},-1]
[]
[null,"ΔΕΔΟΜΕΝΑ ΓΡΑΦΗΜΑΤΟΣ ΑΝΑΛΥΣΗΣ ΑΣΚΗΣΗΣ"]
[]
[null,"Γραμμή έναρξης",{"$f":"ROW(Άσκηση[[#Headers],[ΗΜΕΡΟΜΗΝΙΑ]])+1","v":4},"ΗΜΕΡΟΜΗΝΙΑ","ΗΜΕΡΑ","ΔΙΑΡΚΕΙΑ (ΛΕΠΤΑ)","ΘΕΡΜΙΔΕΣ ΠΟΥ ΚΑΤΑΝΑΛΩΘΗΚΑΝ","Αριθμ."]
[null,"Τελευταία καταχώρηση άσκησης",{"$f":"MATCH(9.99E+307,Άσκηση[ΗΜΕΡΟΜΗΝΙΑ])+ΈναρξηΓραμμήςΆσκησης-1","v":20},{"$f":"IFERROR(IF(INDEX(Άσκηση[],ΤέλοςΔιάρκειαςΆσκησης-ΈναρξηΓραμμήςΆσκησης-H23,1)<>\"\",INDEX(Άσκηση[],ΤέλοςΔιάρκειαςΆσκησης-ΈναρξηΓραμμήςΆσκησης-H23,1)),\"\")","v":"2017-05-29"},{"$f":"UPPER(TEXT(D23,\"ηηη\"))","v":"ΔΕΥ"},{"$f":"IFERROR((IF(INDEX(Άσκηση[],ΤέλοςΔιάρκειαςΆσκησης-ΈναρξηΓραμμήςΆσκησης-H23,1)<>\"\",INDEX(Άσκηση[],ΤέλοςΔιάρκειαςΆσκησης-ΈναρξηΓραμμήςΆσκησης-H23,2),0)),0)","v":20},{"$f":"IFERROR((IF(INDEX(Άσκηση[],ΤέλοςΔιάρκειαςΆσκησης-ΈναρξηΓραμμήςΆσκησης-H23,2)<>\"\",INDEX(Άσκηση[],ΤέλοςΔιάρκειαςΆσκησης-ΈναρξηΓραμμήςΆσκησης-H23,3),0)),0)","v":195},-1]
[{"$nulls":3},{"$f":"IFERROR(IF(INDEX(Άσκηση[],ΤέλοςΔιάρκειαςΆσκησης-ΈναρξηΓραμμήςΆσκησης-H24,1)<>\"\",INDEX(Άσκηση[],ΤέλοςΔιάρκειαςΆσκησης-ΈναρξηΓραμμήςΆσκησης-H24,1)),\"\")","v":"2017-05-28"},"ΚΥΡ",{"$f":"IFERROR((IF(INDEX(Άσκηση[],ΤέλοςΔιάρκειαςΆσκησης-ΈναρξηΓραμμήςΆσκησης-H24,1)<>\"\",INDEX(Άσκηση[],ΤέλοςΔιάρκειαςΆσκησης-ΈναρξηΓραμμήςΆσκησης-H24,2),0)),0)","v":25},{"$f":"IFERROR((IF(INDEX(Άσκηση[],ΤέλοςΔιάρκειαςΆσκησης-ΈναρξηΓραμμήςΆσκησης-H24,2)<>\"\",INDEX(Άσκηση[],ΤέλοςΔιάρκειαςΆσκησης-ΈναρξηΓραμμήςΆσκησης-H24,3),0)),0)","v":265},0]
[{"$nulls":3},{"$f":"IFERROR(IF(INDEX(Άσκηση[],ΤέλοςΔιάρκειαςΆσκησης-ΈναρξηΓραμμήςΆσκησης-H25,1)<>\"\",INDEX(Άσκηση[],ΤέλοςΔιάρκειαςΆσκησης-ΈναρξηΓραμμήςΆσκησης-H25,1)),\"\")","v":"2017-05-27"},"ΣΑΒ",{"$f":"IFERROR((IF(INDEX(Άσκηση[],ΤέλοςΔιάρκειαςΆσκησης-ΈναρξηΓραμμήςΆσκησης-H25,1)<>\"\",INDEX(Άσκηση[],ΤέλοςΔιάρκειαςΆσκησης-ΈναρξηΓραμμήςΆσκησης-H25,2),0)),0)","v":40},{"$f":"IFERROR((IF(INDEX(Άσκηση[],ΤέλοςΔιάρκειαςΆσκησης-ΈναρξηΓραμμήςΆσκησης-H25,2)<>\"\",INDEX(Άσκηση[],ΤέλοςΔιάρκειαςΆσκησης-ΈναρξηΓραμμήςΆσκησης-H25,3),0)),0)","v":290},1]
[{"$nulls":3},{"$f":"IFERROR(IF(INDEX(Άσκηση[],ΤέλοςΔιάρκειαςΆσκησης-ΈναρξηΓραμμήςΆσκησης-H26,1)<>\"\",INDEX(Άσκηση[],ΤέλοςΔιάρκειαςΆσκησης-ΈναρξηΓραμμήςΆσκησης-H26,1)),\"\")","v":"2017-05-26"},"ΠΑΡ",{"$f":"IFERROR((IF(INDEX(Άσκηση[],ΤέλοςΔιάρκειαςΆσκησης-ΈναρξηΓραμμήςΆσκησης-H26,1)<>\"\",INDEX(Άσκηση[],ΤέλοςΔιάρκειαςΆσκησης-ΈναρξηΓραμμήςΆσκησης-H26,2),0)),0)","v":35},{"$f":"IFERROR((IF(INDEX(Άσκηση[],ΤέλοςΔιάρκειαςΆσκησης-ΈναρξηΓραμμήςΆσκησης-H26,2)<>\"\",INDEX(Άσκηση[],ΤέλοςΔιάρκειαςΆσκησης-ΈναρξηΓραμμήςΆσκησης-H26,3),0)),0)","v":320},2]
[{"$nulls":3},{"$f":"IFERROR(IF(INDEX(Άσκηση[],ΤέλοςΔιάρκειαςΆσκησης-ΈναρξηΓραμμήςΆσκησης-H27,1)<>\"\",INDEX(Άσκηση[],ΤέλοςΔιάρκειαςΆσκησης-ΈναρξηΓραμμήςΆσκησης-H27,1)),\"\")","v":"2017-05-25"},"ΠΕΜ",{"$f":"IFERROR((IF(INDEX(Άσκηση[],ΤέλοςΔιάρκειαςΆσκησης-ΈναρξηΓραμμήςΆσκησης-H27,1)<>\"\",INDEX(Άσκηση[],ΤέλοςΔιάρκειαςΆσκησης-ΈναρξηΓραμμήςΆσκησης-H27,2),0)),0)","v":45},{"$f":"IFERROR((IF(INDEX(Άσκηση[],ΤέλοςΔιάρκειαςΆσκησης-ΈναρξηΓραμμήςΆσκησης-H27,2)<>\"\",INDEX(Άσκηση[],ΤέλοςΔιάρκειαςΆσκησης-ΈναρξηΓραμμήςΆσκησης-H27,3),0)),0)","v":350},3]
[{"$nulls":3},{"$f":"IFERROR(IF(INDEX(Άσκηση[],ΤέλοςΔιάρκειαςΆσκησης-ΈναρξηΓραμμήςΆσκησης-H28,1)<>\"\",INDEX(Άσκηση[],ΤέλοςΔιάρκειαςΆσκησης-ΈναρξηΓραμμήςΆσκησης-H28,1)),\"\")","v":"2017-05-24"},"ΤΕΤ",{"$f":"IFERROR((IF(INDEX(Άσκηση[],ΤέλοςΔιάρκειαςΆσκησης-ΈναρξηΓραμμήςΆσκησης-H28,1)<>\"\",INDEX(Άσκηση[],ΤέλοςΔιάρκειαςΆσκησης-ΈναρξηΓραμμήςΆσκησης-H28,2),0)),0)","v":20},{"$f":"IFERROR((IF(INDEX(Άσκηση[],ΤέλοςΔιάρκειαςΆσκησης-ΈναρξηΓραμμήςΆσκησης-H28,2)<>\"\",INDEX(Άσκηση[],ΤέλοςΔιάρκειαςΆσκησης-ΈναρξηΓραμμήςΆσκησης-H28,3),0)),0)","v":295},4]
[{"$nulls":3},{"$f":"IFERROR(IF(INDEX(Άσκηση[],ΤέλοςΔιάρκειαςΆσκησης-ΈναρξηΓραμμήςΆσκησης-H29,1)<>\"\",INDEX(Άσκηση[],ΤέλοςΔιάρκειαςΆσκησης-ΈναρξηΓραμμήςΆσκησης-H29,1)),\"\")","v":"2017-05-23"},"ΤΡΙ",{"$f":"IFERROR((IF(INDEX(Άσκηση[],ΤέλοςΔιάρκειαςΆσκησης-ΈναρξηΓραμμήςΆσκησης-H29,1)<>\"\",INDEX(Άσκηση[],ΤέλοςΔιάρκειαςΆσκησης-ΈναρξηΓραμμήςΆσκησης-H29,2),0)),0)","v":40},{"$f":"IFERROR((IF(INDEX(Άσκηση[],ΤέλοςΔιάρκειαςΆσκησης-ΈναρξηΓραμμήςΆσκησης-H29,2)<>\"\",INDEX(Άσκηση[],ΤέλοςΔιάρκειαςΆσκησης-ΈναρξηΓραμμήςΆσκησης-H29,3),0)),0)","v":270},5]
[{"$nulls":3},{"$f":"IFERROR(IF(INDEX(Άσκηση[],ΤέλοςΔιάρκειαςΆσκησης-ΈναρξηΓραμμήςΆσκησης-H30,1)<>\"\",INDEX(Άσκηση[],ΤέλοςΔιάρκειαςΆσκησης-ΈναρξηΓραμμήςΆσκησης-H30,1)),\"\")","v":"2017-05-22"},"ΔΕΥ",{"$f":"IFERROR((IF(INDEX(Άσκηση[],ΤέλοςΔιάρκειαςΆσκησης-ΈναρξηΓραμμήςΆσκησης-H30,1)<>\"\",INDEX(Άσκηση[],ΤέλοςΔιάρκειαςΆσκησης-ΈναρξηΓραμμήςΆσκησης-H30,2),0)),0)","v":45},{"$f":"IFERROR((IF(INDEX(Άσκηση[],ΤέλοςΔιάρκειαςΆσκησης-ΈναρξηΓραμμήςΆσκησης-H30,2)<>\"\",INDEX(Άσκηση[],ΤέλοςΔιάρκειαςΆσκησης-ΈναρξηΓραμμήςΆσκησης-H30,3),0)),0)","v":325},6]
[{"$nulls":3},{"$f":"IFERROR(IF(INDEX(Άσκηση[],ΤέλοςΔιάρκειαςΆσκησης-ΈναρξηΓραμμήςΆσκησης-H31,1)<>\"\",INDEX(Άσκηση[],ΤέλοςΔιάρκειαςΆσκησης-ΈναρξηΓραμμήςΆσκησης-H31,1)),\"\")","v":"2017-05-21"},"ΚΥΡ",{"$f":"IFERROR((IF(INDEX(Άσκηση[],ΤέλοςΔιάρκειαςΆσκησης-ΈναρξηΓραμμήςΆσκησης-H31,1)<>\"\",INDEX(Άσκηση[],ΤέλοςΔιάρκειαςΆσκησης-ΈναρξηΓραμμήςΆσκησης-H31,2),0)),0)","v":40},{"$f":"IFERROR((IF(INDEX(Άσκηση[],ΤέλοςΔιάρκειαςΆσκησης-ΈναρξηΓραμμήςΆσκησης-H31,2)<>\"\",INDEX(Άσκηση[],ΤέλοςΔιάρκειαςΆσκησης-ΈναρξηΓραμμήςΆσκησης-H31,3),0)),0)","v":175},7]
[{"$nulls":3},{"$f":"IFERROR(IF(INDEX(Άσκηση[],ΤέλοςΔιάρκειαςΆσκησης-ΈναρξηΓραμμήςΆσκησης-H32,1)<>\"\",INDEX(Άσκηση[],ΤέλοςΔιάρκειαςΆσκησης-ΈναρξηΓραμμήςΆσκησης-H32,1)),\"\")","v":"2017-05-20"},"ΣΑΒ",{"$f":"IFERROR((IF(INDEX(Άσκηση[],ΤέλοςΔιάρκειαςΆσκησης-ΈναρξηΓραμμήςΆσκησης-H32,1)<>\"\",INDEX(Άσκηση[],ΤέλοςΔιάρκειαςΆσκησης-ΈναρξηΓραμμήςΆσκησης-H32,2),0)),0)","v":30},{"$f":"IFERROR((IF(INDEX(Άσκηση[],ΤέλοςΔιάρκειαςΆσκησης-ΈναρξηΓραμμήςΆσκησης-H32,2)<>\"\",INDEX(Άσκηση[],ΤέλοςΔιάρκειαςΆσκησης-ΈναρξηΓραμμήςΆσκησης-H32,3),0)),0)","v":335},8]
[{"$nulls":3},{"$f":"IFERROR(IF(INDEX(Άσκηση[],ΤέλοςΔιάρκειαςΆσκησης-ΈναρξηΓραμμήςΆσκησης-H33,1)<>\"\",INDEX(Άσκηση[],ΤέλοςΔιάρκειαςΆσκησης-ΈναρξηΓραμμήςΆσκησης-H33,1)),\"\")","v":"2017-05-19"},"ΠΑΡ",{"$f":"IFERROR((IF(INDEX(Άσκηση[],ΤέλοςΔιάρκειαςΆσκησης-ΈναρξηΓραμμήςΆσκησης-H33,1)<>\"\",INDEX(Άσκηση[],ΤέλοςΔιάρκειαςΆσκησης-ΈναρξηΓραμμήςΆσκησης-H33,2),0)),0)","v":40},{"$f":"IFERROR((IF(INDEX(Άσκηση[],ΤέλοςΔιάρκειαςΆσκησης-ΈναρξηΓραμμήςΆσκησης-H33,2)<>\"\",INDEX(Άσκηση[],ΤέλοςΔιάρκειαςΆσκησης-ΈναρξηΓραμμήςΆσκησης-H33,3),0)),0)","v":205},9]
[{"$nulls":3},{"$f":"IFERROR(IF(INDEX(Άσκηση[],ΤέλοςΔιάρκειαςΆσκησης-ΈναρξηΓραμμήςΆσκησης-H34,1)<>\"\",INDEX(Άσκηση[],ΤέλοςΔιάρκειαςΆσκησης-ΈναρξηΓραμμήςΆσκησης-H34,1)),\"\")","v":"2017-05-18"},"ΠΕΜ",{"$f":"IFERROR((IF(INDEX(Άσκηση[],ΤέλοςΔιάρκειαςΆσκησης-ΈναρξηΓραμμήςΆσκησης-H34,1)<>\"\",INDEX(Άσκηση[],ΤέλοςΔιάρκειαςΆσκησης-ΈναρξηΓραμμήςΆσκησης-H34,2),0)),0)","v":20},{"$f":"IFERROR((IF(INDEX(Άσκηση[],ΤέλοςΔιάρκειαςΆσκησης-ΈναρξηΓραμμήςΆσκησης-H34,2)<>\"\",INDEX(Άσκηση[],ΤέλοςΔιάρκειαςΆσκησης-ΈναρξηΓραμμήςΆσκησης-H34,3),0)),0)","v":285},10]
[{"$nulls":3},{"$f":"IFERROR(IF(INDEX(Άσκηση[],ΤέλοςΔιάρκειαςΆσκησης-ΈναρξηΓραμμήςΆσκησης-H35,1)<>\"\",INDEX(Άσκηση[],ΤέλοςΔιάρκειαςΆσκησης-ΈναρξηΓραμμήςΆσκησης-H35,1)),\"\")","v":"2017-05-17"},"ΤΕΤ",{"$f":"IFERROR((IF(INDEX(Άσκηση[],ΤέλοςΔιάρκειαςΆσκησης-ΈναρξηΓραμμήςΆσκησης-H35,1)<>\"\",INDEX(Άσκηση[],ΤέλοςΔιάρκειαςΆσκησης-ΈναρξηΓραμμήςΆσκησης-H35,2),0)),0)","v":25},{"$f":"IFERROR((IF(INDEX(Άσκηση[],ΤέλοςΔιάρκειαςΆσκησης-ΈναρξηΓραμμήςΆσκησης-H35,2)<>\"\",INDEX(Άσκηση[],ΤέλοςΔιάρκειαςΆσκησης-ΈναρξηΓραμμήςΆσκησης-H35,3),0)),0)","v":125},11]
[{"$nulls":3},{"$f":"IFERROR(IF(INDEX(Άσκηση[],ΤέλοςΔιάρκειαςΆσκησης-ΈναρξηΓραμμήςΆσκησης-H36,1)<>\"\",INDEX(Άσκηση[],ΤέλοςΔιάρκειαςΆσκησης-ΈναρξηΓραμμήςΆσκησης-H36,1)),\"\")","v":"2017-05-16"},"ΤΡΙ",{"$f":"IFERROR((IF(INDEX(Άσκηση[],ΤέλοςΔιάρκειαςΆσκησης-ΈναρξηΓραμμήςΆσκησης-H36,1)<>\"\",INDEX(Άσκηση[],ΤέλοςΔιάρκειαςΆσκησης-ΈναρξηΓραμμήςΆσκησης-H36,2),0)),0)","v":30},{"$f":"IFERROR((IF(INDEX(Άσκηση[],ΤέλοςΔιάρκειαςΆσκησης-ΈναρξηΓραμμήςΆσκησης-H36,2)<>\"\",INDEX(Άσκηση[],ΤέλοςΔιάρκειαςΆσκησης-ΈναρξηΓραμμήςΆσκησης-H36,3),0)),0)","v":150},12]